Cogmind - Beta 15 @@@ ROGUE MODE // 2025.06.09 @ 00:51:07 Player: The Gourd Result: Destroyed by D-53 Grenadier with Mini Grenade Launcher Performance ------------- Evolutions (0) 0 Regions Visited (2) 400 Robots Destroyed (19) 95 Value Destroyed (586) 586 Prototype IDs (0) 0 Alien Tech Used (0) 0 Bonus (25) 25 TOTAL SCORE: 1106 Bonus ------- Follower Combat Kills 25 Cogmind --------- Core Integrity 0/250 Matter 284/300 Energy 100/100 System Corruption 0% Temperature Cool (0) Movement Core (350) Ox6 Location -10/Mines Parts ------- > --- POWER (1) -------- (None) > --- PROPULSION (2) --- (None) > --- UTILITY (2) ------ Large Storage Unit > --- WEAPON (2) ------- (None) > --- INVENTORY (15) --- Ion Engine Light Ion Engine Medium Storage Unit Hacking Suite Mining Laser Peak State ------------ > --- POWER ------------ Ion Engine > --- PROPULSION ------- Light Treads Light Treads > --- UTILITY ---------- Small Storage Unit Seismic Detector > --- WEAPON ----------- Assault Rifle Assault Rifle > --- INVENTORY -------- Light Ion Engine Light Ion Engine Wheel Wheel High-capacity Battery Hacking Suite EM Pulse Gun Mining Laser [Rating: 8] Favorites ----------- Power Ion Engine Engine Ion Engine Propulsion Light Treads Treads Light Treads Wheel Wheel Utility Seismic Detector Device Seismic Detector Storage Small Storage Unit Protection Light Armor Plating Weapon Assault Rifle Energy Gun EM Pulse Gun Ballistic Gun Assault Rifle Launcher Grenade Launcher Special Weapon Mining Laser Build | -11 -10 -10 ------- Run | Yrd Mat Min Slots Evolved . | . . . Power . | . . . Propulsion . | . . . Utility . | . . . Weapon . | . . . Parts Attached 17 | 6 11 . Power 3 | . 3 . Engine 3 | . 3 . Core . | . . . Reactor . | . . . Propulsion 4 | 2 2 . Treads 2 | 2 . . Leg . | . . . Wheel 2 | . 2 . Hover . | . . . Flight . | . . . Utility 4 | 2 2 . Device 1 | 1 . . Storage 2 | 1 1 . Processor . | . . . Hackware . | . . . Protection 1 | . 1 . Artifact . | . . . Weapon 6 | 2 4 . Energy Gun 1 | . 1 . Energy Cannon . | . . . Ballistic Gun 2 | 2 . . Ballistic Cannon . | . . . Launcher 1 | . 1 . Special Weapon 2 | . 2 . Impact Weapon . | . . . Slashing Weapon . | . . . Piercing Weapon . | . . . Special Melee Weapon . | . . . Unidentified Prototypes . | . . . Parts Lost 12 | . 4 8 Power 2 | . 1 1 Propulsion 4 | . 2 2 Utility 2 | . . 2 Weapon 4 | . 1 3 Highest Loss Streak 8 | . 2 8 To Critical Strikes . | . . . Average Backups 7 | 4 7 10 Power 2 | 1 2 5 Propulsion 1 | 1 1 . Utility 1 | . 2 3 Weapon 2 | 1 2 1 Tool/Special . | . . . Unused Backups 8 | . 1 7 Power 5 | . 1 4 Propulsion . | . . . Utility 3 | . . 3 Weapon . | . . . Tool/Special . | . . . Average Slot Usage (%) 99 | . 99 98 Engine 13 | . 13 14 Treads 19 | . 20 14 Wheel 8 | . 7 12 Device 8 | . 9 1 Storage 14 | . 14 14 Protection 5 | . 4 12 Energy Gun 1 | . 1 1 Ballistic Gun 24 | . 25 12 Launcher 1 | . . 14 Peak Build Rating 8 | 6 8 8 Average Rating 7 | 5 7 7 On Entrance 4 | . 6 8 Naked Turns . | . . . Heaviest Build 33 | 10 33 29 Greatest Support 40 | 40 40 10 Greatest Overweight (x) 3 | 1 3 2 Average Overweight (x) 1 | . 1 2 Largest Inventory Capacity 15 | 8 15 15 Average Capacity 11 | 7 11 15 Most Carried 11 | 6 11 11 Average Carried 7 | 4 7 10 Final Capacity 15 | 8 15 15 Final Carried 11 | 6 11 5 Class Distribution -------------------- 100% | Mutant Dominant Class ---------------- Mutant | -10/Materials Mutant | -10/Mines Resources | -11 -10 -10 ----------- Run | Yrd Mat Min Matter Collected 789 | 320 442 27 Remotely . | . . . Salvage Created 626 | 107 496 23 Parts 29 | 6 20 3 Haulers Intercepted . | . . . Recyclers Shooed 1 | . . 1 Parts Field Recycled . | . . . Retrieved Matter . | . . . Parts Self-Destructed . | . . . Prevented . | . . . Kills | -11 -10 -10 ------- Run | Yrd Mat Min Combat Hostiles Destroyed 13 | . 12 1 Guns 6 | . 6 . AOE 7 | . 6 1 Classes Destroyed 4 | 2 2 . Tunneler 3 | 2 . 1 Recycler 2 | 1 1 . Operator 1 | . 1 . Grunt 13 | . 12 1 Best Kill Streak 3 | 2 3 2 Combat Bots Only 3 | . 3 1 Max Kills in Single Turn 2 | 1 2 2 Gunslinging . | . . . Exploded 2 | . 2 1 Melee . | . . . Uniques/NPCs Destroyed . | . . . Combat | -11 -10 -10 -------- Run | Yrd Mat Min Hostile Shots Fired 76 | . 63 13 Missed 20 | . 17 3 Hits 56 | . 46 10 Projectile 56 | . 46 10 AOE 12 | . 1 11 Damage Taken 1296 | . 767 529 Core 290 | . 102 188 Absorbed by Shields . | . . . Regen/Repaired (Parts) 57 | . 57 . Core Remaining (%) 100 | 100 . . Volleys Fired 78 | 10 62 6 Largest 2 | 2 2 2 Hottest 100 | 40 100 70 Shots Fired 122 | 20 94 8 Gun 110 | 20 86 4 Cannon . | . . . Launcher 11 | . 7 4 Special 1 | . 1 . Kinetic 105 | 20 83 2 Thermal 1 | . 1 . Explosive 11 | . 7 4 Electromagnetic 5 | . 3 2 Robot Hit Streak 15 | 2 15 9 Robot Miss Streak 10 | 2 10 1 Penetration Max . | . . . Secondary Targets . | . . . Shots Hit Robots 75 | 10 60 5 Core Hits 40 | 3 29 8 Critical Kills . | . . . Critical Parts Destroyed . | . . . Critical Strikes . | . . . Melee Attacks . | . . . Impact . | . . . Slashing . | . . . Piercing . | . . . Sneak Attacks . | . . . Combat Hostiles . | . . . Follow-up Attacks . | . . . Damage Inflicted 1642 | 152 1234 256 Guns 857 | 152 684 21 Cannons . | . . . Explosions 785 | . 550 235 Melee . | . . . Ramming . | . . . Kinetic 810 | 152 647 11 Thermal 107 | . 107 . Explosive 678 | . 443 235 Electromagnetic 47 | . 37 10 Impact . | . . . Slashing . | . . . Piercing . | . . . Highest Corruption . | . . . Average Corruption . | . . . Corruption Purged . | . . . Corruption Blocked . | . . . Overload Shots . | . . . Overflow Damage 24 | . 24 . Projectiles . | . . . Explosions 24 | . 24 . Melee . | . . . Knockbacks . | . . . Impact . | . . . Kinetic . | . . . Secondary . | . . . Self-Inflicted Damage 52 | . 52 . Shots 1 | . 1 . Rammed . | . . . Targets Rammed . | . . . Kicked . | . . . Crushed . | . . . Highest Temperature 83 | . 83 6 Average Temperature 15 | . 17 3 Received Heat Transfer 351 | . 339 12 Siege Activations . | . . . Martial Activations . | . . . Shielding Activations . | . . . Robots Disrupted . | . . . Combat Hostiles . | . . . Robots Corrupted . | . . . Combat Hostiles . | . . . Parts Fried . | . . . Impact Corruptions . | . . . Robots Melted . | . . . Combat Hostiles . | . . . Parts Melted . | . . . Heat Transferred 50 | . 50 . Parts Sabotaged . | . . . Parts Stolen . | . . . Parts Stripped . | . . . Power Chain Reactions 1 | . 1 . Alert | -11 -10 -10 ------- Run | Yrd Mat Min Maximum Alert Level . | . . . Low Security (%) 100 | 100 100 100 Level 1 . | . . . Level 2 . | . . . Level 3 . | . . . Level 4 . | . . . Level 5 . | . . . High Security . | . . . Max Security . | . . . Peak Influence 156 | 5 156 78 Initial 48 | . . 48 Average 34 | 1 37 54 Influence Increases 529 | 15 417 97 Destroy 0b10 Robot/C 280 | . 240 40 Destroy 0b10 Robot/NC 35 | 15 10 10 Destroy Leader 60 | . 50 10 Allied During Kill 3 | . . 3 Successful Hack 34 | . 34 . Disable Machine 45 | . 45 . Destroy Structure 42 | . 23 19 Lose Combat Pursuer 30 | . 15 15 Influence Decreases 524 | 15 292 217 Entered New Map 77 | . . 77 Time Decay 312 | 15 257 40 Lost Part 115 | . 35 80 Lost Ally 20 | . . 20 Squads Dispatched 3 | . 3 . Investigation 2 | . 2 . Extermination . | . . . Reinforcement 1 | . 1 . Assault . | . . . Garrison . | . . . Intercept . | . . . Searches Triggered . | . . . Construction Impeded . | . . . Haulers Reinforced . | . . . Active Scanning Responses . | . . . Cargo Convoy Interrupts . | . . . Stealth | -11 -10 -10 --------- Run | Yrd Mat Min Distress Signals 5 | . 5 . Communications Jammed . | . . . Distress Signals . | . . . Times Spotted 31 | . 26 5 Peak Tracking Total 5 | . 5 3 Tactical Retreats 2 | . 1 1 Traps | -11 -10 -10 ------- Run | Yrd Mat Min Traps Triggered 2 | . 2 . Indirectly . | . . . Trap Hack Attempts . | . . . Triggered . | . . . Disarmed . | . . . Reprogrammed . | . . . Reused . | . . . Traps Extracted . | . . . Installed . | . . . Triggered . | . . . Machines | -11 -10 -10 ---------- Run | Yrd Mat Min Machines Disabled 3 | . 3 . Max in Single Turn 2 | . 2 . Machines Repaired . | . . . Machines Dismantled . | . . . Machines Sabotaged . | . . . Overloaded Fab Kills . | . . . Hacking | -11 -10 -10 --------- Run | Yrd Mat Min Machines Accessed 8 | . 8 . Terminals 7 | . 7 . Fabricators . | . . . Repair Stations 1 | . 1 . Recycling Units . | . . . Scanalyzers . | . . . Garrison Access . | . . . Total Hacks 25 | . 25 . Successful 13 | . 13 . Failed 11 | . 11 . Catastrophic . | . . . Database Lockouts 1 | . 1 . Manual 23 | . 23 . Terminals 23 | . 23 . Fabricators . | . . . Repair Stations 2 | . 2 . Recycling Units . | . . . Scanalyzers . | . . . Garrison Access . | . . . Terminal Hacks 4 | . 4 . Robot Analysis 2 | . 2 . Terminal Index 1 | . 1 . Hauler Manifests 1 | . 1 . Fabricator Hacks . | . . . Repair Station Hacks 2 | . 2 . Scan Component 1 | . 1 . Repair 1 | . 1 . Recycling Unit Hacks . | . . . Scanalyzer . | . . . Garrison Access Hacks . | . . . Unauthorized Hacks 7 | . 7 . Terminals 7 | . 7 . Botnet 1 | . 1 . Operators 1 | . 1 . Skim 5 | . 5 . Fabricators . | . . . Repair Stations . | . . . Recycling Units . | . . . Scanalyzers . | . . . Garrison Access . | . . . Data Cores Recovered . | . . . Used . | . . . Hacking Detections 7 | . 7 . Full Trace Events . | . . . Feedback Events . | . . . Feedback Blocked . | . . . Robot Schematics Acquired . | . . . Robots Built . | . . . Authchips . | . . . Time . | . . . Total Robot Build Rating . | . . . Part Schematics Acquired . | . . . Parts Built . | . . . Authchips . | . . . Time . | . . . Total Part Build Rating . | . . . Parts Repaired 1 | . 1 . Time 26 | . 26 . Parts Recycled . | . . . Recycled Matter . | . . . Retrieved Matter . | . . . Retrieved Components . | . . . Parts Scanalyzed . | . . . Part Schematics Acquired . | . . . Parts Damaged . | . . . Bothacking | -11 -10 -10 ------------ Run | Yrd Mat Min Used RIF Installer . | . . . Robots Hacked . | . . . Non-combat . | . . . Combat . | . . . Robot Hacks Applied . | . . . Relay Couplers Released . | . . . Fabnet Peak Effective % . | . . . Robots Rewired . | . . . Allies Hacked . | . . . Hacks Repelled . | . . . Allies | -11 -10 -10 -------- Run | Yrd Mat Min Total Allies 2 | . . 2 Largest Group 2 | . . 2 Highest-Rated Group 42 | . . 42 Highest-Rated Ally 31 | . . 31 Total Orders . | . . . Ally Attacks 8 | . . 8 Total Damage 84 | . . 84 Kills 2 | . . 2 Allies Corrupted . | . . . Allies Melted . | . . . Intel | -11 -10 -10 ------- Run | Yrd Mat Min Active Infowar (turns) 846 | 85 756 5 Seismic 846 | 85 756 5 Robot Analysis Total 2 | . 2 . Derelict Logs Recovered . | . . . Drone Launches . | . . . Drone Recoveries . | . . . Exploration | -11 -10 -10 ------------- Run | Yrd Mat Min Turns Passed 1433 | 164 1183 86 Spaces Moved 819 | 77 693 49 Core 8 | 8 . . Treads 320 | 69 251 . Legs . | . . . Wheels 491 | . 442 49 Hover . | . . . Flight . | . . . Fastest Speed 50 | 50 80 110 Average Speed 131 | 153 130 110 Slowest Speed 160 | 160 160 110 Overloaded Moves . | . . . Propulsion Burnouts . | . . . Robots Hopped . | . . . Potential Cave-ins . | . . . Cave-ins Triggered . | . . . Exploration Rate (%) 33 | 5 83 13 Regions Visited 2 Branch Regions 1 Pre-discovered Areas . | . . . Known Exits Taken . | . . . Unknown Exits Taken 2 | 1 1 . Scrap Searched . | . . . Spaces Dug 4 | . 4 . Terrain Destroyed 41 | . 17 24 Melee . | . . . Projectile . | . . . AOE 41 | . 17 24 Terrain Rammed . | . . . Walls Destroyed . | . . . Machines Disabled . | . . . Actions | -11 -10 -10 --------- Run | Yrd Mat Min Total 1051 | 100 876 75 Wait 108 | 2 93 13 Move 817 | 76 692 49 Hop . | . . . Pick Up 16 | 6 10 . Fast Attach 8 | 6 2 . Attach 7 | . 5 2 Detach 1 | . 1 . Swap 9 | . 8 1 Drop 7 | . 3 4 Fire 78 | 10 62 6 Melee . | . . . Ram . | . . . Kick . | . . . Crush . | . . . Escape Stasis . | . . . Rewire . | . . . Trap . | . . . Miscellaneous . | . . . Route ------- -11/Scrapyard -10/Materials (discovered 5 exits: *Mat x3 / [*Min] / *Sub) -10/Mines (discovered 3 exits: Mat x2 / Sub) History --------- Turn | Location | Event 15 | -11/Scrapyard | Discovered new exit (range 14) 165 | -11/Scrapyard | Entered Materials 300 | -10/Materials | Build established: Mutant 823 | -10/Materials | Learned location of 2 exits from Mines 838 | -10/Materials | Discovered new exit (range 12) 870 | -10/Materials | Identified exit to Subcaves 905 | -10/Materials | Learned 2 Mines zone layouts 946 | -10/Materials | Identified exit to Materials 972 | -10/Materials | Learned 2 Storage zone layouts 1009 | -10/Materials | Learned Storage trap positions 1204 | -10/Materials | Repaired Lgt. Treads 1254 | -10/Materials | Discovered exit to Materials (range 13) 1258 | -10/Materials | Central database locked down 1348 | -10/Materials | Entered Mines 1396 | -10/Mines | Assembled infested the area 1401 | -10/Mines | Assisted by a Guerilla fighting off Assembled 1426 | -10/Mines | Core integrity fell below 50% 1433 | -10/Mines | Core integrity fell below 20% 1434 | -10/Mines | Destroyed by D-53 Grenadier with Mini Grenade Launcher Last Messages --------------- 01425_ U-05 Engineer destroyed. 01425_ Assault Rifle destroyed. 01425_ Lgt. Armor Plating destroyed. 01426_ The unstable cave ceiling collapses. 01426_ Wheel destroyed. 01429_ The unstable cave ceiling collapses. 01430_ G-47 Trooper destroyed. 01430_ T-07 Excavator destroyed. 01430_ Seismic Detector destroyed. 01430_ K-01 Serf collects debris. 01432_ Lgt. Treads destroyed. 01432_ EM Pulse Gun destroyed. 01432_ Grenade Launcher destroyed. 01433_ The unstable cave ceiling collapses. 01433_ Dropped Hcp. Battery. 01433_ Dropped Ion Engine. 01433_ K-01 Serf collects debris. 01434_ Dropped Lgt. Ion Engine. 01434_ Backup Power I destroyed. 01434_ Dropped Lgt. Ion Engine. Map ----- +----------------------------------------------------+ | ?????????????????????????????????????????????????? | | ?????????????????????????????????????????????????? | | ?????????????????????????????????????????????????? | | ?????????????????????????????????????????????????? | | ?????????????????????????????????????????????????? | | ?????????????????????????????????????????????????? | | ?????????????????????????????????????????????????? | | ?????????????????????????????????????????????????? | | ?????????????????????????????????????????????????? | | ?????????????????????????????????????????????????? | | ????? ?????????????????????????????????????????? | | ????? ????????????????????????????????????????? | | ????# ??????######???????????????????????????? | | ????# #???## #???????????????????????????? | | ????# #### ????????????????????????????? | | ?????# ! ????????????????????????????? | | ??????# ?????????????????????????????? | | ???????? = #?????????????????????????????? | | ?????????? #?????????????????????????????? | | ???????????? ########??????????????????????? | | ??????????????% ####??##???????????????? | | ???????????????# #??## #?# ### ##??????????? | | ???????????????# ##?## ## # ##?????? | | ???????????????# #??# ! = #?????? | | ???????????????# #?## * % d =%! #?????? | | # #### ##????# ### @* ]d % #??#### | | #####??###?????# z * % #? #??# | | ???????????????##### k #??# | | ?????????????????## # # #### # | | ?????????????????# # # ?? # | | ????????????????## ##########? ???? # | | ???????????????## ##???????????? ?? ######## | | ??????????????## ##??????????????? ? ##???## | | ??????????????# ##??????????????????? ##??# | | ??????????????# ##???????????????????? #??# | | #?????????????# #????????????????????? #### | | #?????????????## #????????????????????? | | #?????????????? #????????????????????? | | ??????????????? ??????????????????????? ## #### | | ?????????????### ???????????????????????#### #?## | | ?????????????#>? ?????????????????????????## #?# | | ?????????????##?????????????????????????### #?# | | ???????????????????????????????????????? ##?# | | ???????????????????????????????????????? #??## | | ???????????????????????????????????????? #???# | | ????????????????????????????????????????## ##???? | | ?????????????????????????????????????????####????? | | ?????????????????????????????????????????????????? | | ?????????????????????????????????????????????????? | | ?????????????????????????????????????????????????? | +----------------------------------------------------+ Best States ------------- Heat Dissipation 25 Energy Generation 10 Energy Capacity 250 Matter Stores 300 Matter Capacity 300 Sight Range 16 Terrain Scan Density 10 Armor Coverage 150 Evasion (%) 44 Recoil Reduction 2 Item Schematics ----------------- None Robot Schematics ------------------ None Fabricated ------------ Nothing Repaired ---------- Lgt. Treads | 59% | -10/Materials Alien Tech Used ----------------- None Achievements -------------- None Challenges ------------ None Game ------ Seed AmuletClaymoresFirepult Manual? 0 Play Time 00:14:31 Cumulative 129.6 hours Start 2025.06.09 @ 00:38:46 End 2025.06.09 @ 00:51:07 Sessions 1 Manual Loads 0 Difficulty Rogue Special Mode None Game No. 83 Rogue 83 Adventurer 0 Explorer 0 Win Type - Total 2 Types 2/0/0/0/0/0/0/0/0/0 Lore% 34 Gallery% 48 Achievement% 51 Wizard Run 0 Options --------- Layout 1 ASCII 0 Keyboard 1 Movement Vi Keybinds 1 Fullscreen 1 Font 32/SmallcapsGlow Map View 50x35 Zoom Use 0% Tactical HUD 1 Map Filters NONE Filters NONE Steam 1 RUN: f287e9de-3035-47dd-acba-8a76eb3c5d88